[Event "1st Festival ChessInLyon-GM 2024"]
[Site "Lyon"]
[Date "2024.04.23"]
[Round "1.1"]
[White "Vlachos, Anatole"]
[Black "Fedorchuk, Sergey A."]
[Result "1/2-1/2"]
[ECO "B40"]
[WhiteElo "2482"]
[BlackElo "2557"]
[Annotator "TA"]
[PlyCount "76"]
[EventDate "2024.04.23"]
[EventType "tourn"]
[EventCountry "FRA"]
[SourceTitle "playchess.com"]
[Source "ChessBase"]
[SourceQuality "1"]
[TimeControl "40/5400+30:1800+30"]

{[%evp 21,76,0,45,49,41,37,43,35,52,50,44,0,0,0,42,-7,0,0,0,-22,-30,-54,0,0,0,-22,-35,-23,0,0,0,0,61,50,179,174,168,147,381,350,316,322,1602,1554,1440,0,0,0,0,0,0,0,0,0,0,0,0]} 1. e4 {[%emt 0:00:05]} c5 {[%emt 0:00:43]} 2. Nf3 {[%emt 0:00:05]} e6 {[%emt 0:01:02]} 3. c3 {[%emt 0:00:04]} Nf6 {[%emt 0:07:13]} 4. Bd3 {[%emt 0:04:00]} d5 {[%emt 0:22:29]} 5. e5 {[%emt 0:00:08]} Nfd7 {[%emt 0:00:07]} 6. Bc2 {[%emt 0:00:17] B40: Sicilian: 2...e6, Unusual lines.} c4 $1 {[%emt 0:01:25][%mdl 4] is more profitable than 6...Nc6 at the moment.} 7. O-O {[%emt 0:01:51]} Nc6 {[%emt 0:02:21]} 8. Re1 {[%emt 0:00:06]} g6 {[%emt 0:07:34]} 9. d4 {[%emt 0:02:28]} cxd3 {[%emt 0:01:48]} 10. Qxd3 {[%emt 0:07:25]} Bg7 {[%emt 0:01:49]} 11. Bf4 {[%emt 0:01:15]} O-O {[%emt 0:02:08]} 12. Nbd2 {[%emt 0:09:39]} Qc7 {[%emt 0:06:29]} 13. Qe2 {[%emt 0:05:03]} b5 $146 {[%emt 0:06:01]} ({Predecessor:} 13... b6 14. Nb3 a5 15. Nbd4 Ba6 16. Qe3 Nxd4 17. Nxd4 b5 18. Rac1 Qb6 19. h4 b4 {0-1 Aronian,L (2723)-Guseinov,G (2636) Wch Blitz Samarkand 2023 (6)}) 14. Rac1 {[%emt 0:09:15]} (14. Qxb5 Rb8 15. Qe2 Rxb2 $17) 14... Qb6 {[%emt 0:05:51]} 15. Bd3 {[%emt 0:02:13]} b4 {[%emt 0:12:02]} 16. Nb3 {[%emt 0:10:08]} bxc3 {[%emt 0:01:28]} 17. Rxc3 {[%emt 0:02:41]} Nb4 {[%emt 0:02:40]} 18. Bb5 {[%emt 0:02:09]} (18. Bb1 $14 {might be stronger.}) 18... Nxa2 $11 {[%emt 0:01:47]} 19. Rc6 {[%emt 0:02:01]} Qb8 $1 {[%emt 0:00:45]} 20. Nbd4 {[%emt 0:03:21]} a6 {[%emt 0:03:47]} 21. Ba4 {[%emt 0:04:30]} Nb4 {[%emt 0:01:35]} (21... Nb6 $15 22. b3 Nb4) 22. Qd2 $11 {[%emt 0:05:36]} a5 {[%emt 0:05:32]} 23. Rc3 {[%emt 0:13:15]} (23. Rcc1 $5) 23... Nb6 {[%emt 0:00:42]} 24. Bb5 {[%emt 0:00:20]} Ba6 {[%emt 0:02:05]} 25. Bxa6 {[%emt 0:00:28]} Rxa6 {[%emt 0:00:05]} 26. Bh6 $1 {[%emt 0:00:06]} Nc4 {[%emt 0:02:05]} (26... Na4 $11 27. Rcc1 (27. Bxg7 Kxg7 28. Qe2 Rb6 $15) 27... Rc8) 27. Qf4 $1 $14 {[%emt 0:00:32]} a4 {[%emt 0:01:44]} ({Black should play} 27... Nxb2 $14 28. Qh4 (28. Bxg7 Kxg7 29. Ng5 N4d3 $14) 28... N2d3) 28. Bxg7 $18 {[%emt 0:00:55]} Kxg7 {[%emt 0:00:02]} 29. Ng5 {[%emt 0:00:42]} Qd8 $2 {[%emt 0:01:06]} (29... Nxb2 30. Rh3 Kg8 31. Nxh7 f5 32. Nf6+ (32. Qh6 Kf7 $18) 32... Rxf6 33. Qh4 g5 34. Qh8+ (34. Qxg5+ Rg6 35. Qxg6+ Kf8 36. Rh8+ Ke7 37. Qh7#) 34... Kf7 35. Rh7+ Kg6 36. Qg7#) (29... Nxe5 $16 30. Qxe5+ (30. Rxe5 a3 $15) 30... Qxe5 31. Rxe5 Kg8) 30. Rh3 {[%emt 0:01:41]} (30. Qxf7+ Rxf7 31. Ngxe6+ Kg8 32. Nxd8 Re7 $14) 30... h5 {[%emt 0:00:20] [#]} 31. g4 $1 {[%emt 0:00:11]} (31. Qxf7+ Rxf7 32. Ngxe6+ Kh8 33. Nxd8 Re7 $16) 31... Nxb2 $2 {[%emt 0:00:37]} (31... h4 32. Rxh4 (32. Qxf7+ Rxf7 33. Ndxe6+ Kg8 $14) 32... Nd3 33. Ngxe6+ fxe6 34. Qh6+ Kf7 35. Qh7+ Ke8 36. Qxg6+ Kd7 37. Rh7+ (37. Qxd3 $2 {is the wrong capture.} Qxh4 38. Qg3 Qxg3+ 39. hxg3 Nxb2 $19) 37... Kc8 38. Qxd3 Qb6) 32. gxh5 $18 {[%emt 0:03:03]} N2d3 {[%emt 0:00:05]} 33. h6+ $2 {[%emt 0:02:11]} (33. Qg3 $18 {[%cal Oh5g6] White wants to mate with hxg6!} Nxf2 34. Ngxe6+ (34. Kxf2 Nc6 $18) 34... Kg8 35. Nxd8) 33... Kh8 $11 {[%emt 0:00:38]} 34. Nxf7+ {[%emt 0:01:45]} Kh7 {[%emt 0:00:04]} 35. Ng5+ {[%emt 0:00:41]} Kh8 {[%emt 0:00:06]} 36. Nf7+ {[%emt 0:05:11]} Kh7 {[%emt 0:00:12]} 37. Ng5+ {[%emt 0:00:06]} Kh8 {[%emt 0:01:16]} 38. Nf7+ {[%emt 0:02:46]} Kh7 {[%emt 0:00:07]} 1/2-1/2

[Event "1st Festival ChessInLyon-GM 2024"]
[Site "Lyon"]
[Date "2024.04.23"]
[Round "1.2"]
[White "Gatineau, Yovann"]
[Black "Pourramezanali, Amirreza"]
[Result "0-1"]
[ECO "D43"]
[WhiteElo "2408"]
[BlackElo "2502"]
[Annotator "TA"]
[PlyCount "70"]
[EventDate "2024.04.23"]
[EventType "tourn"]
[EventCountry "FRA"]
[SourceTitle "playchess.com"]
[Source "ChessBase"]
[SourceQuality "1"]
[TimeControl "40/5400+30:1800+30"]

{[%evp 9,70,3,9,0,0,0,7,0,0,10,5,-36,-49,-86,-16,-48,-18,-14,-35,-40,-31,-27,-36,-66,-14,-29,0,-77,-104,-102,-51,-108,-115,-106,-106,-93,-99,-94,-92,-91,-90,-94,-89,-117,-135,-135,-104,-217,-106,-578,-582,-1107,-1118,-1477,-1183,-1764,-1772,-1812,-1707,-1429,-1273,-1139,-1071]} 1. d4 {[%emt 0:00:05]} d5 {[%emt 0:00:06]} 2. c4 {[%emt 0:00:07]} e6 {[%emt 0:00:03]} 3. Nf3 {[%emt 0:00:20]} Nf6 {[%emt 0:00:05]} 4. Nc3 {[%emt 0:00:06]} c6 {[%emt 0:00:05]} 5. Qd3 {[%emt 0:00:44]} Nbd7 {[%emt 0:00:32]} 6. g3 {[%emt 0:00:37]} a5 {[%emt 0:00:07]} 7. Bg2 {[%emt 0:06:43]} b6 {[%emt 0:00:05]} 8. O-O {[%emt 0:07:45] The position is equal.} Ba6 {[%emt 0:00:09]} 9. b3 {[%emt 0:00:27]} Be7 {[%emt 0:00:05]} 10. e4 {[%emt 0:08:49] [#]} b5 $1 {[%emt 0:00:16][%cal Rb5c4]} 11. e5 {[%emt 0:20:33]} (11. cxb5 cxb5 12. Qe3 b4 $19) (11. Qc2 bxc4) 11... bxc4 {[%emt 0:00:17]} (11... dxc4 $17 12. bxc4 bxc4) 12. Qd1 {[%emt 0:01:44]} Ne4 {[%emt 0:10:22]} 13. Nxe4 {[%emt 0:00:56]} dxe4 {[%emt 0:00:03]} 14. Nd2 {[%emt 0:00:11][%csl LRc4,LRe4]} cxb3 {[%emt 0:05:36]} 15. Re1 {[%emt 0:00:10]} bxa2 {[%emt 0:00:46]} 16. Bxe4 {[%emt 0:05:12]} Qb6 {[%emt 0:05:07]} (16... O-O $15) 17. Rxa2 $11 {[%emt 0:06:50]} Bb4 {[%emt 0:08:58][%cal Oa6b5]} 18. Qg4 {[%emt 0:07:09]} (18. Ba3 $11) 18... O-O $17 {[%emt 0:11:00][%cal Oa8d8]} (18... Qxd4 19. Nf3 (19. Qxg7 Qxe5 20. Qh6 Bb5 $11) 19... Qc5 20. Rc2 $16 (20. Qxg7 Qf8 $11)) 19. Rd1 {[%emt 0:09:10]} Rae8 {[%emt 0:07:26]} (19... Qxd4 $2 20. Bxh7+ Kxh7 21. Qxd4 $18) ({Black should try} 19... Rad8 $17 {[%cal Of7f5] ...f5! would now be deadly.} 20. Nf3 f5 21. exf6 Nxf6 22. Qxe6+ Kh8) 20. Bb1 {[%emt 0:07:12]} (20. Bc2 $15) 20... f5 {[%emt 0:02:03]} 21. exf6 {[%emt 0:00:43]} Nxf6 {[%emt 0:00:17]} 22. Qh4 {[%emt 0:00:28]} Be2 $36 {[%emt 0:11:07][%mdl 2048] Black is in control.} 23. Re1 {[%emt 0:00:08]} Qb5 {[%emt 0:01:03] Strongly threatening ...e5.} 24. Ba3 {[%emt 0:05:38] [#]} Bd3 $1 {[%emt 0:09:17] Black is more active.} 25. Bxb4 {[%emt 0:04:09]} axb4 {[%emt 0:00:15]} (25... Bxb1 {simplifies} 26. Rxb1 axb4 27. Rab2 Qf5) 26. Ra7 {[%emt 0:01:21] [#]} Bxb1 $1 {[%emt 0:04:18]} 27. Rxb1 {[%emt 0:00:10]} Qf5 {[%emt 0:04:13] Wards off Qf4. Threatens to win with ...Nd5.} 28. Rb3 {[%emt 0:03:13]} (28. Rxb4 $17 Ra8 29. Rxa8 Rxa8 30. Qf4 Qxf4 31. gxf4) 28... h6 {[%emt 0:06:49]} (28... h5 $19 29. Rf3 (29. Rxb4 $2 {loses.} g5 $19) 29... Qd5) 29. Rb7 $2 {[%emt 0:02:12][%mdl 8192] This costs White the game.} (29. Rxb4 $17 {was the crucial defense.} Ra8 30. Rba4 Rxa7 31. Rxa7) 29... Qc2 $19 {[%emt 0:01:47] Black is clearly winning.} 30. Qf4 {[%emt 0:00:38]} Qd1+ {[%emt 0:00:32]} 31. Kg2 {[%emt 0:00:23]} Ng4 {[%emt 0:00:08]} 32. Rb1 {[%emt 0:00:53]} Qe2 {[%emt 0:03:54]} 33. Re1 {[%emt 0:00:08]} Qxe1 {[%emt 0:00:58]} 34. Qxg4 {[%emt 0:00:06]} Qxf2+ {[%emt 0:00:05]} (34... Qxd2 35. Qxg7#) 35. Kh3 {[%emt 0:00:06]} Rf7 {[%emt 0:00:04] Weighted Error Value: White=0.64/Black=0.27 (precise) .  Loses game:     	White=1     	---        Mistake:       	White=3     	Black=4      Inaccurate:     	White=7     	Black=2      OK:         	White=7     	Black=8      Best:        	White=5     	Black=3      Strong:       	---       	Black=2      Brilliant:      	---       	Black=1} ({Worse is} 35... Qxd2 36. Qxg7#) 0-1

[Event "1st Festival ChessInLyon-GM 2024"]
[Site "Lyon"]
[Date "2024.04.23"]
[Round "1.3"]
[White "Droin, Augustin"]
[Black "Crut, Aurelien"]
[Result "1-0"]
[ECO "C11"]
[WhiteElo "2478"]
[BlackElo "2312"]
[Annotator "TA"]
[PlyCount "24"]
[EventDate "2024.04.23"]
[EventType "tourn"]
[EventCountry "FRA"]
[SourceTitle "playchess.com"]
[Source "ChessBase"]
[SourceQuality "1"]
[TimeControl "40/5400+30:1800+30"]

{[%evp 9,24,27,33,26,25,32,29,25,32,27,47,45,52,51,51,51,70]} 1. e4 {[%emt 0:00:03]} e6 {[%emt 0:00:09]} 2. d4 {[%emt 1:31:27]} d5 {[%emt 0:00:07]} 3. Nc3 {[%emt 0:00:00][%cal Bb1c3,Bc3e2,Be2f4][%mdl 32]} a6 {[%emt 0:00:18]} 4. Nf3 {[%emt 0:00:00]} Nf6 {[%emt 0:00:22]} 5. e5 {[%emt 0:00:00]} Nfd7 {[%emt 0:00:23]} 6. Ne2 {[%emt 0:00:00]} c5 {[%emt 0:01:02]} 7. c3 {[%emt 0:00:00]} Nc6 {[%emt 0:00:28]} 8. g3 {[%emt 0:00:00] White has an edge.} b5 {[%emt 0:11:32]} 9. a3 {[%emt 0:00:00]} c4 {[%emt 0:06:29]} 10. Be3 {[%emt 0:00:00] White is slightly better.} Qb6 {[%emt 0:11:07]} 11. Nf4 {[%emt 0:00:00]} Be7 {[%emt 0:04:05]} 12. h4 {[%emt 0:00:00]} Bb7 {[%emt 0:06:30] Weighted Error Value: White=0.00 (flawless) /Black=0.05 (flawless) .  OK:         	White=4     	Black=2} 1-0

[Event "1st Festival ChessInLyon-GM 2024"]
[Site "Lyon"]
[Date "2024.04.23"]
[Round "1.4"]
[White "Boyer, Mahel"]
[Black "Poetsch, Hagen"]
[Result "0-1"]
[ECO "A13"]
[WhiteElo "2432"]
[BlackElo "2460"]
[Annotator "TA"]
[PlyCount "58"]
[EventDate "2024.04.23"]
[EventType "tourn"]
[EventCountry "FRA"]
[SourceTitle "playchess.com"]
[Source "ChessBase"]
[SourceQuality "1"]
[TimeControl "40/5400+30:1800+30"]

{[%evp 12,58,17,5,21,0,0,0,0,0,0,0,10,0,0,0,0,0,0,0,0,0,0,0,0,0,0,-18,-18,-27,-30,-20,-21,-11,-12,-10,0,-101,-95,-100,-101,-238,-231,-693,-673,-884,-884,-29997,-29998]} 1. Nf3 {[%emt 0:00:12]} d5 {[%emt 0:00:18]} 2. e3 {[%emt 0:00:06]} Nf6 {[%emt 0:00:10]} 3. c4 {[%emt 0:00:04]} e6 {[%emt 0:00:06]} 4. b3 {[%emt 0:00:08]} c5 {[%emt 0:00:16]} 5. Bb2 {[%emt 0:00:39]} Nc6 {[%emt 0:00:23]} 6. cxd5 {[%emt 0:00:06]} exd5 {[%emt 0:00:06]} 7. Be2 {[%emt 0:00:03]} d4 {[%emt 0:01:25]} 8. exd4 {[%emt 0:00:05]} cxd4 {[%emt 0:00:07] White must now prevent ...d3.} 9. Bb5 {[%emt 0:00:04]} Bc5 {[%emt 0:00:25] The position is equal.} 10. Qe2+ {[%emt 0:00:04]} Be6 {[%emt 0:00:33]} 11. Qe5 {[%emt 0:05:23]} Bd6 {[%emt 0:04:01]} 12. Qxd4 {[%emt 0:04:16]} O-O {[%emt 0:00:08]} 13. Bxc6 {[%emt 0:00:10]} bxc6 {[%emt 0:00:06]} 14. O-O {[%emt 0:01:38]} Bd5 {[%emt 0:01:09]} 15. Qh4 {[%emt 0:05:21]} Bxf3 {[%emt 0:00:20] A strong pair of Bishops.} 16. Bxf6 {[%emt 0:04:12]} gxf6 {[%emt 0:00:08]} 17. gxf3 {[%emt 0:00:08]} Be5 {[%emt 0:00:17]} 18. Nc3 {[%emt 0:00:16]} Qd3 {[%emt 0:00:06]} 19. Rfe1 {[%emt 0:43:03]} Kh8 {[%emt 0:03:17][%mdl 1024] Black has compensation.} (19... Qxf3 $6 20. Re3 Qf5 21. d4 $14) 20. Re3 $1 {[%emt 0:03:30]} Rg8+ {[%emt 0:14:31]} ({Reject} 20... Qxd2 21. Ne4 Rg8+ 22. Kh1 $11) 21. Kh1 {[%emt 0:01:47]} Qg6 {[%emt 0:04:06]} 22. Qh3 {[%emt 0:00:02] Inhibits Qg2+.} Rg7 {[%emt 0:06:00] Hoping for ...Rag8.} 23. Rf1 {[%emt 0:04:22]} Bxc3 {[%emt 0:29:00]} 24. Rxc3 {[%emt 0:07:03] [#]} (24. dxc3 $11 Rag8 25. Ree1) 24... Rag8 $1 $40 {[%emt 0:00:05][%cal Og6g1][%mdl 128] ( -> ...Qg1+!). Black wants a kill.} 25. Rcc1 {[%emt 0:00:19][%cal Of3f4] [#]} (25. Rxc6 $2 {leads to mate.} Qg1+ 26. Rxg1 Rxg1#) 25... Qg5 $1 {[%emt 0:01:57]} 26. Rfe1 {[%emt 0:18:46] Now White is beyond hope.} (26. Rcd1 $17) 26... Rg6 $19 {[%emt 0:03:57] aiming for ...Rh6.} 27. Rcd1 $2 {[%emt 0:01:42]} (27. f4 Qd5+ (27... Qxf4 28. Qe3 $15) 28. f3 Qxd2 29. Rg1) 27... Rh6 {[%emt 0:02:22]} 28. Qg4 {[%emt 0:00:29]} Qd5 {[%emt 0:00:22]} 29. Qf4 {[%emt 0:00:14] [#]} Rxh2+ $3 {[%emt 0:00:11][%mdl 512] Weighted Error Value: White=0.57/Black=0.01 (flawless) .  Mistake:       	White=3     	---        Inaccurate:     	White=1     	---        OK:         	White=8     	Black=9      Best:        	White=4     	Black=4      Strong:       	White=1     	Black=2} 0-1

[Event "1st Festival ChessInLyon-GM 2024"]
[Site "Lyon"]
[Date "2024.04.23"]
[Round "1.5"]
[White "Tahay, Alexis"]
[Black "Shyaamnikhil P"]
[Result "0-1"]
[ECO "C60"]
[WhiteElo "2382"]
[BlackElo "2390"]
[Annotator "TA"]
[PlyCount "60"]
[EventDate "2024.04.23"]
[EventType "tourn"]
[EventCountry "FRA"]
[SourceTitle "playchess.com"]
[Source "ChessBase"]
[SourceQuality "1"]
[TimeControl "40/5400+30:1800+30"]

{[%evp 9,60,28,28,38,44,37,83,33,35,-5,43,31,21,-77,0,0,91,-14,-14,-60,-38,-102,-109,-238,-177,-183,-181,-199,-176,-331,-335,-442,-391,-398,-390,-391,-375,-576,-553,-614,-827,-885,-647,-2910,-2416,-5675,-5155,-29992,-29993,-29993,-29994,-29995,-29996]} 1. e4 {[%emt 0:00:05]} e5 {[%emt 0:00:18]} 2. Nf3 {[%emt 0:00:05]} Nc6 {[%emt 0:00:05]} 3. Bb5 {[%emt 0:00:05]} Nge7 {[%emt 0:01:10]} 4. c3 {[%emt 0:02:13]} f6 {[%emt 0:03:12]} 5. d4 {[%emt 0:01:47]} d5 {[%emt 0:00:07]} 6. dxe5 {[%emt 0:01:59]} dxe4 {[%emt 0:00:38]} 7. Nd4 {[%emt 0:00:03]} Qd5 {[%emt 0:08:34] [#]} (7... a6 $14 8. Ba4 b5) 8. exf6 {[%emt 0:02:45]} (8. Na3 $1 $16) 8... gxf6 $14 {[%emt 0:00:10]} 9. O-O {[%emt 0:02:58] Strongly threatening Nxc6.} Rg8 {[%emt 0:07:03]} (9... Bd7 $11) 10. Bf4 {[%emt 0:12:11]} Bd7 {[%emt 0:06:35]} 11. Qe2 {[%emt 0:05:23]} (11. Ba4 $11 Nxd4 12. cxd4 (12. Bxd7+ Qxd7 13. Qxd4 Qxd4 $15) 12... Bxa4 13. Qxa4+ Qd7 14. Qxd7+ Kxd7 15. f3) 11... Ng6 $40 {[%emt 0:11:09][%mdl 128] Black mounts an attack.} (11... Nxd4 $17 12. Bxd7+ Qxd7 13. cxd4 O-O-O) 12. Bxc6 $11 {[%emt 0:17:43]} (12. Bxc7 $2 Nxd4 13. Bxd7+ Kxd7 $19) 12... bxc6 {[%emt 0:04:04]} (12... Bxc6 $11 13. Bxc7 f5) 13. Bg3 {[%emt 0:03:45]} (13. Bxc7 $16 {Nd2 is the strong threat.} c5 14. Nb3) 13... f5 $1 {[%emt 0:26:31]} 14. Nd2 {[%emt 0:07:01]} (14. f3 $11) 14... c5 $15 {[%emt 0:02:17]} 15. Nb5 {[%emt 0:02:58] [#]} (15. Nxe4 $15 fxe4 (15... cxd4 $2 16. Nf6+ Kf7 17. Nxd5 $18) (15... Qxe4 16. Qc4 $15) 16. Nb5) 15... O-O-O $1 $17 {[%emt 0:10:54]} 16. f4 {[%emt 0:28:40] This costs White the game.} (16. Nxc7 $17 Qc6 17. a4) 16... Qd3 {[%emt 0:04:27]} ({Stronger than} 16... Bxb5 17. Qxb5 Qxd2 18. Qa6+ Kb8 19. Rad1 Qxd1 20. Qb5+ Ka8 (20... Kc8 21. Qa6+ Kb8 22. Qb5+ Kc8 23. Qa6+ Kb8 $11) 21. Qc6+ Kb8 22. Qb5+ Ka8 (22... Kc8 23. Qa6+ Kb8 24. Qb5+ $11) 23. Qc6+ Kb8 24. Qb5+ $11) 17. Qxd3 {[%emt 0:00:10]} exd3 {[%emt 0:00:04]} 18. Na3 {[%emt 0:02:30]} h5 {[%emt 0:00:20] And now ...h4 would win.} 19. h3 $2 {[%emt 0:02:04]} (19. Nf3) 19... Bc6 $19 {[%emt 0:01:18]} 20. Nf3 {[%emt 0:01:58]} h4 {[%emt 0:01:47]} 21. Bh2 {[%emt 0:00:16]} Bd6 {[%emt 0:01:01]} 22. Nc4 {[%emt 0:02:53]} Bxf4 {[%emt 0:00:15] This pair of bishops is nice. White is weak on the light squares} ({Not} 22... Nxf4 23. Nxd6+ (23. Nxh4 $2 {is the wrong capture.} Nxg2 24. Nxd6+ cxd6 $19) 23... Rxd6 24. Bxf4 $18) 23. Rf2 {[%emt 0:00:33]} (23. Rad1 {might work better.}) 23... Bg3 {[%emt 0:01:48]} 24. Bxg3 {[%emt 0:00:47]} hxg3 {[%emt 0:00:07]} 25. Rff1 {[%emt 0:00:04]} Rge8 {[%emt 0:00:21] ...Re2 would now be deadly.} 26. Rae1 {[%emt 0:00:56]} Re2 {[%emt 0:00:22]} 27. Ncd2 {[%emt 0:01:34]} Nf4 {[%emt 0:01:08]} 28. Rxe2 {[%emt 0:00:07]} dxe2 {[%emt 0:00:10] Black mates.} 29. Re1 {[%emt 0:00:11]} Bxf3 {[%emt 0:00:32]} 30. Nxf3 {[%emt 0:00:07]} Rd1 {[%emt 0:00:05] Weighted Error Value: White=0.92/Black=0.19 (very precise) .  Mistake:       	White=8     	Black=4      Inaccurate:     	White=2     	---        OK:         	White=4     	Black=6      Best:        	White=1     	Black=2      Strong:       	---       	Black=2} 0-1

[Event "1st Festival ChessInLyon-GM 2024"]
[Site "Lyon"]
[Date "2024.04.23"]
[Round "2.2"]
[White "Fedorchuk, Sergey A."]
[Black "Gatineau, Yovann"]
[Result "1/2-1/2"]
[ECO "C13"]
[WhiteElo "2557"]
[BlackElo "2408"]
[Annotator "TA"]
[PlyCount "115"]
[EventDate "2024.04.23"]
[EventType "tourn"]
[EventCountry "FRA"]
[SourceTitle "playchess.com"]
[Source "ChessBase"]
[SourceQuality "1"]
[TimeControl "40/5400+30:1800+30"]

{[%evp 26,115,-17,0,-3,-24,10,14,16,5,9,-15,-9,-4,0,0,13,7,11,7,9,16,48,15,16,0,40,42,39,31,38,26,50,43,81,19,96,90,93,90,79,81,81,75,74,83,83,83,82,82,83,81,82,40,45,25,34,8,10,11,10,0,8,8,8,8,14,0,0,0,9,9,9,8,8,8,8,0,0,0,0,0,8,8,8,8,8,8,8,8,8,8]} 1. e4 {[%emt 0:00:50]} e6 {[%emt 0:00:08]} 2. d4 {[%emt 0:00:32]} d5 {[%emt 0:00:05]} 3. Nc3 {[%emt 0:01:40]} Nf6 {[%emt 0:00:24]} 4. Bg5 {[%emt 0:00:20]} dxe4 {[%emt 0:00:27]} 5. Nxe4 {[%emt 0:00:19]} Be7 {[%emt 0:00:05]} 6. Bxf6 {[%emt 0:01:15]} gxf6 {[%emt 0:00:08]} 7. Nf3 {[%emt 0:00:25]} a6 {[%emt 0:01:03]} 8. Qe2 {[%emt 0:07:44] C13: French: Classical System: 4 Bg5 Be7, Alekhine-Chatard Attack.} f5 {[%emt 0:06:49]} 9. Ned2 {[%emt 0:03:49] was the old line (9.Nc3).} b5 {[%emt 0:06:31]} 10. g3 {[%emt 0:09:39]} Bb7 {[%emt 0:08:34]} 11. Bg2 {[%emt 0:00:14]} Nd7 {[%emt 0:02:07]} 12. a4 {[%emt 0:02:00]} bxa4 $146 {[%emt 0:06:36]} ({Predecessor:} 12... c5 13. O-O c4 14. axb5 axb5 15. Ne5 Bxg2 16. Kxg2 Nb6 17. Qh5 O-O 18. Ndf3 Qd5 {½-½ Santagati,A (2208)-Sadorra,J (2501) Titled Tuesday intern op 6th Oct blitz 2015 (1)}) 13. c4 {[%emt 0:02:05]} O-O {[%emt 0:03:46]} 14. O-O {[%emt 0:02:13]} Bf6 {[%emt 0:05:15]} 15. Rfd1 {[%emt 0:02:08]} Qe7 {[%emt 0:01:51]} (15... c5 {is more complex.} 16. d5 Re8 17. dxe6 Rxe6 18. Qd3 Bxb2 19. Qxf5 Rf6) 16. Rxa4 {[%emt 0:03:00]} Rfd8 {[%emt 0:05:59]} 17. Ra3 {[%emt 0:02:14]} Rab8 {[%emt 0:03:25]} 18. Re3 {[%emt 0:03:11]} Qb4 {[%emt 0:04:55]} 19. b3 {[%emt 0:05:13]} Nf8 {[%emt 0:07:45]} 20. Rd3 $1 {[%emt 0:09:34]} c5 {[%emt 0:03:54]} 21. d5 $1 {[%emt 0:18:58]} exd5 {[%emt 0:00:59]} 22. Ne1 {[%emt 0:00:08]} dxc4 {[%emt 0:03:39]} 23. Nxc4 {[%emt 0:01:09]} Re8 {[%emt 0:06:49]} (23... Bxg2 {simplifies} 24. Nxg2 Rxd3 25. Rxd3 Ne6) 24. Qf1 {[%emt 0:13:40]} Be4 {[%emt 0:09:47]} 25. Nd6 {[%emt 0:07:51]} Re6 {[%emt 0:02:19]} 26. Nxe4 {[%emt 0:02:00]} fxe4 {[%emt 0:00:10]} 27. Re3 {[%emt 0:00:01]} Rbe8 {[%emt 0:05:22]} 28. Nc2 {[%emt 0:01:11]} Qb7 {[%emt 0:01:54]} 29. Qc4 {[%emt 0:00:38]} Ng6 {[%emt 0:00:11]} 30. Rde1 {[%emt 0:00:21]} (30. Rd5 $16) 30... Kg7 {[%emt 0:02:02]} (30... Qb5 $11) 31. Bxe4 $16 {[%emt 0:00:30]} Qb5 {[%emt 0:00:35]} 32. Bd5 {[%emt 0:00:50]} Rxe3 {[%emt 0:00:59]} 33. Nxe3 {[%emt 0:00:16]} Qxc4 {[%emt 0:00:56]} 34. Nf5+ {[%emt 0:00:44]} (34. Bxc4 {simplifies} Ne5 35. Be2 Rb8 36. Rc1) 34... Kf8 {[%emt 0:00:14]} 35. Rxe8+ {[%emt 0:00:03]} (35. Bxc4 $2 {perishes.} Rxe1+ 36. Kg2 a5 $19) 35... Kxe8 {[%emt 0:00:02]} 36. Bxc4 {[%emt 0:00:04]} Ne5 {[%emt 0:01:24]} 37. Bxa6 {[%emt 0:00:15]} Nf3+ {[%emt 0:00:31]} 38. Kg2 {[%emt 0:00:23]} Nd4 {[%emt 0:00:05]} 39. Nd6+ {[%emt 0:01:55]} Ke7 {[%emt 0:00:21]} 40. Nc8+ {[%emt 0:00:06]} Kd7 $1 {[%emt 0:01:51]} 41. Na7 {[%emt 0:30:29]} Nxb3 {[%emt 0:04:20]} 42. Bc4 {[%emt 0:00:00]} Nd4 {[%emt 0:00:26]} 43. Kh3 {[%emt 0:00:00]} Kc7 {[%emt 0:05:57]} 44. Nb5+ {[%emt 0:00:00]} Nxb5 {[%emt 0:00:05]} 45. Bxb5 {[%emt 0:00:00]} Kd6 {[%emt 0:00:37]} 46. Kg4 {[%emt 0:00:00]} Bd4 {[%emt 0:00:42]} 47. f4 {[%emt 0:00:00]} Ke6 {[%emt 0:00:34]} 48. Bd3 {[%emt 0:00:00]} h6 {[%emt 0:00:18]} 49. Kh5 {[%emt 0:00:00]} Bg1 {[%emt 0:00:51]} 50. h4 {[%emt 0:00:00]} Bh2 {[%emt 0:00:21]} 51. f5+ {[%emt 0:00:00]} (51. Kxh6 $5 Kf6 (51... Bxg3 52. Kg5 $11) 52. g4 Bxf4+ 53. g5+ Ke7 54. Kg7 $11) 51... Kf6 {[%emt 0:00:36]} 52. Kxh6 {[%emt 0:00:00]} Bxg3 {[%emt 0:00:07]} 53. h5 {[%emt 0:00:00]} c4 {[%emt 0:00:14]} 54. Bxc4 {[%emt 0:00:00]} Kxf5 {[%emt 0:00:06]} 55. Kg7 {[%emt 0:00:00]} Bf4 {[%emt 0:00:05]} 56. Bxf7 {[%emt 0:00:00]} Ke5 {[%emt 0:00:05]} 57. h6 {[%emt 0:00:00]} Bxh6+ {[%emt 0:00:03]} 58. Kxh6 {[%emt 0:00:00]} 1/2-1/2